bitfinex/quotes_BTCUSD_20230117
["timestamp","ask_amount","ask_price","bid_price","bid_amount"]
[1673996071782,3.29682243,21244.0,21243.0,0.01694686]
[1673996072039,3.22022262,21244.0,21243.0,0.01694686]
[1673996072290,4.2557697,21244.0,21243.0,0.01694686]
[1673996073025,4.1647697,21244.0,21243.0,0.01694686]
[1673996073764,3.94129812,21244.0,21243.0,0.01694686]
[1673996074011,4.1645871,21244.0,21243.0,0.01694686]
[1673996074265,4.1645871,21244.0,21243.0,6.86e-06]
[1673996074521,4.1645871,21244.0,21240.0,0.88933687]
[1673996074522,4.1645871,21244.0,21240.0,0.01902595]
[1673996074523,0.0175949,21241.0,21240.0,0.01902595]
[1673996074768,0.0175949,21241.0,21238.0,0.01738953]
[1673996074769,2.7460159,21241.0,21238.0,0.01738953]
[1673996075040,0.27904449,21239.0,21238.0,0.01738953]
[1673996075293,0.2,21238.0,21235.0,0.01760253]
[1673996075567,0.2,21238.0,21230.0,0.02223556]
[1673996075568,0.3319,21236.0,21230.0,0.02223556]
[1673996075825,1.633426,21234.0,21230.0,0.02223556]
[1673996076075,2.98235882,21234.0,21230.0,0.02223556]
[1673996076575,2.79163287,21234.0,21230.0,0.02223556]
[1673996076854,2.79163287,21234.0,21233.0,4.219e-05]
[1673996076855,3.28826337,21234.0,21233.0,4.219e-05]
[1673996077088,3.48826337,21234.0,21233.0,4.219e-05]
[1673996077328,4.15256337,21234.0,21233.0,4.219e-05]
[1673996077578,4.2641522,21234.0,21233.0,4.219e-05]
[1673996077826,0.2,21233.0,21224.0,0.1682]
[1673996078092,0.1103,21229.0,21224.0,0.25064416]
[1673996078343,0.51193895,21228.0,21223.0,0.571973]
[1673996078592,0.19072595,21227.0,21223.0,0.571973]
[1673996078863,0.19072595,21226.0,21223.0,0.571973]
[1673996079602,1.01806491,21229.0,21224.0,0.3]
[1673996079859,1.01806491,21229.0,21224.0,0.08244416]
[1673996079860,0.1108,21227.0,21224.0,0.08244416]
[1673996080110,0.2,21225.0,21220.0,0.62124]
[1673996080372,0.51193895,21224.0,21219.0,7.19e-05]
[1673996080644,1.14834569,21225.0,21219.0,7.19e-05]
[1673996080645,2.29089702,21223.0,21219.0,7.19e-05]
[1673996080881,2.29089702,21223.0,21219.0,1.9e-06]
[1673996080884,0.9974,21220.0,21219.0,1.9e-06]
[1673996081138,0.9974,21220.0,21209.0,0.471482]
[1673996081139,0.942652,21217.0,21209.0,0.471482]
[1673996081414,0.942652,21217.0,21209.0,0.89716991]
[1673996081415,0.1108,21214.0,21209.0,0.89716991]
[1673996081664,0.17165813,21213.0,21212.0,0.1104]
[1673996081927,0.19072595,21213.0,21212.0,0.90566]
[1673996082160,0.04895307,21214.0,21212.0,0.686731]
[1673996082417,0.21030001,21221.0,21213.0,0.218919]
[1673996082683,0.04878779,21217.0,21216.0,0.1099]
[1673996082927,0.40102596,21221.0,21216.0,1.492465]
[1673996083186,0.40102596,21221.0,21218.0,0.1108]
[1673996083187,0.25872613,21221.0,21218.0,0.1108]
[1673996083454,0.25872613,21221.0,21220.0,0.56741]
[1673996083692,0.25872613,21221.0,21220.0,2.93279998]
[1673996083975,0.21030001,21221.0,21220.0,3.17982903]
[1673996084206,0.29479,21230.0,21223.0,1.413513]
[1673996084207,0.0494541,21225.0,21223.0,1.413513]
[1673996084488,0.0494541,21225.0,21224.0,1.19533298]
[1673996084762,0.0494541,21225.0,21224.0,1.90756203]
[1673996085010,0.29389,21235.0,21227.0,0.942196]
[1673996085011,0.30606972,21233.0,21227.0,0.942196]
[1673996085488,0.04859868,21233.0,21229.0,0.1108]
[1673996085757,0.04859868,21233.0,21230.0,0.10151198]
[1673996086269,0.321213,21232.0,21229.0,0.471046]
[1673996086547,0.321213,21231.0,21228.0,0.881866]
[1673996086796,0.321213,21230.0,21228.0,0.881866]
[1673996087054,0.23001868,21233.0,21228.0,0.881866]
[1673996087311,0.5676013,21233.0,21228.0,0.51231198]
[1673996087572,0.431113,21232.0,21228.0,0.10151198]
[1673996087839,0.321213,21231.0,21227.0,0.99697796]
[1673996088094,0.19072595,21231.0,21228.0,0.3]
[1673996088374,0.3099,21232.0,21227.0,0.99697796]
[1673996088631,0.42929598,21232.0,21227.0,1.09848994]
[1673996088899,0.2,21231.0,21227.0,1.09848994]
[1673996089164,0.321213,21230.0,21227.0,0.99697796]
[1673996089419,0.19072595,21231.0,21227.0,0.99697796]
[1673996089686,0.23857003,21232.0,21228.0,0.3]
[1673996089947,0.23857003,21232.0,21228.0,0.10151199]
[1673996090206,0.321213,21231.0,21228.0,0.10151198]
[1673996090684,0.321213,21230.0,21227.0,1.46807196]
[1673996090686,0.1099,21232.0,21227.0,1.46807196]
[1673996090939,0.30062595,21232.0,21227.0,1.56956694]
[1673996091197,0.321213,21231.0,21227.0,1.56956694]
[1673996091451,0.321213,21230.0,21227.0,1.46805496]
[1673996091704,0.321213,21229.0,21227.0,1.44305496]
[1673996091967,0.19072595,21231.0,21227.0,1.44305496]
[1673996092238,0.1099,21232.0,21227.0,1.54456694]
[1673996092484,0.1099,21232.0,21228.0,0.40151198]
[1673996092737,0.1099,21232.0,21228.0,0.87258398]
[1673996093253,0.62938368,21233.0,21228.0,1.34365898]
[1673996093513,0.15839868,21233.0,21229.0,0.10151198]
[1673996093736,0.15839868,21233.0,21229.0,0.57255498]
[1673996094773,0.15839868,21233.0,21229.0,1.04360798]
[1673996095742,0.15839868,21233.0,21229.0,0.942096]
[1673996096268,0.04859868,21233.0,21229.0,1.051996]
[1673996097301,0.04859868,21233.0,21229.0,1.15350798]
[1673996097555,0.04859868,21233.0,21231.0,0.1103]
[1673996098126,0.470957,21234.0,21231.0,0.1103]
[1673996099168,0.94187,21235.0,21231.0,1.44040346]
[1673996099395,0.470938,21235.0,21231.0,1.54191544]
[1673996099649,1.04510395,21236.0,21231.0,1.54191544]
[1673996099912,1.04510395,21236.0,21233.0,0.1108]
[1673996099913,1.51601295,21236.0,21233.0,0.1108]
[1673996100172,1.51601295,21236.0,21233.0,0.21231198]
[1673996100428,1.51601295,21236.0,21233.0,0.1108]
[1673996101714,0.321213,21235.0,21232.0,1.052758]
[1673996101982,1.7067369,21236.0,21232.0,1.052758]
[1673996102255,1.51601095,21236.0,21232.0,1.052758]
[1673996102790,1.51601095,21236.0,21232.0,1.15426998]
[1673996103050,1.04510195,21236.0,21232.0,1.15426998]
[1673996103344,1.04510195,21236.0,21232.0,1.052758]
[1673996103896,1.31640725,21236.0,21232.0,1.052758]
[1673996104158,0.52010195,21236.0,21232.0,1.052758]
[1673996104952,0.7108279,21236.0,21232.0,1.052758]
[1673996105221,1.1817259,21236.0,21232.0,1.052758]
[1673996105494,0.99099995,21236.0,21232.0,1.052758]
[1673996106048,0.52008995,21236.0,21232.0,1.052758]
[1673996106303,0.52008995,21236.0,21232.0,0.470984]
[1673996106304,0.9780653,21236.0,21232.0,0.470984]
[1673996106564,0.78733935,21236.0,21232.0,0.470984]
[1673996107093,0.52008995,21236.0,21232.0,0.68329598]
[1673996107348,0.52008995,21236.0,21232.0,0.581784]
[1673996108158,0.52008995,21236.0,21232.0,0.470984]
[1673996108423,0.52008995,21236.0,21232.0,1.04348298]
[1673996109253,0.52008995,21236.0,21232.0,0.941971]
[1673996110289,0.7108159,21236.0,21232.0,0.941971]
[1673996110562,1.0138696,21236.0,21232.0,0.470987]
[1673996110816,0.321213,21235.0,21232.0,0.470987]
[1673996111083,0.321213,21234.0,21232.0,0.470987]
[1673996111372,0.2,21235.0,21232.0,0.470987]
[1673996111916,0.670921,21235.0,21232.0,0.470987]
[1673996112184,0.470921,21235.0,21232.0,0.470987]
[1673996113539,0.470921,21235.0,21232.0,0.47089402]
[1673996113792,0.321213,21234.0,21232.0,0.47089402]
[1673996114047,0.470921,21235.0,21232.0,0.47089402]
[1673996115088,0.321213,21234.0,21232.0,0.47089402]
[1673996115344,0.470921,21235.0,21232.0,0.47089402]
[1673996116160,0.470921,21235.0,21230.0,0.471029]
[1673996116161,0.321213,21234.0,21230.0,0.471029]
[1673996116406,0.321213,21233.0,21230.0,0.471029]
[1673996116785,0.321213,21232.0,21230.0,0.471029]
[1673996116932,1.141906,21234.0,21230.0,0.94206]
[1673996117190,1.4284188,21234.0,21230.0,0.94206]
[1673996117451,1.2284188,21234.0,21230.0,0.94206]
[1673996120127,0.7574668,21234.0,21230.0,1.40015918]
[1673996120915,0.7574668,21234.0,21230.0,1.2986472]
[1673996121197,0.470954,21234.0,21230.0,1.2986472]
[1673996122019,0.74992608,21234.0,21230.0,1.2986472]
[1673996122284,0.11158883,21233.0,21230.0,1.2986472]
[1673996122802,0.74992608,21234.0,21230.0,1.2986472]
[1673996123053,0.74992608,21234.0,21230.0,1.40015918]
[1673996123379,1.01423784,21234.0,21230.0,1.2986472]
[1673996123381,0.11158883,21233.0,21230.0,1.2986472]
[1673996124669,0.27897208,21233.0,21230.0,1.2986472]
[1673996125864,0.11158883,21233.0,21230.0,1.2986472]
[1673996131587,0.27897208,21233.0,21230.0,1.2986472]
[1673996132059,0.58254283,21234.0,21230.0,1.2986472]
[1673996132365,0.11158883,21233.0,21230.0,1.40015918]
[1673996132592,0.11158883,21233.0,21230.0,1.2986472]
[1673996132862,0.02099458,21233.0,21230.0,1.3741472]
[1673996133090,0.02099458,21233.0,21231.0,0.518682]
[1673996133322,0.13258341,21233.0,21231.0,0.941995]
[1673996133516,0.13258341,21233.0,21232.0,0.48494244]
[1673996133517,0.02099458,21233.0,21232.0,0.48494244]
[1673996133729,0.02099458,21233.0,21232.0,1.17459844]
[1673996135646,0.02099458,21233.0,21232.0,0.95592944]
[1673996135884,0.02099458,21233.0,21232.0,1.17459744]
[1673996136317,0.02099458,21233.0,21232.0,1.42691644]
[1673996137301,0.02099458,21233.0,21232.0,1.94558444]
[1673996137536,0.02099458,21233.0,21232.0,1.64558444]
[1673996137767,0.02099458,21233.0,21232.0,1.94558444]
[1673996138135,0.02099458,21233.0,21232.0,2.02068444]
[1673996143833,0.02099458,21233.0,21232.0,2.01568444]
[1673996144030,0.02099458,21233.0,21232.0,2.09058444]
[1673996144521,0.02099458,21233.0,21232.0,2.40310449]
[1673996144753,0.02099458,21233.0,21232.0,2.57228053]
[1673996145008,0.01774037,21233.0,21232.0,2.57228053]
[1673996145244,0.01774037,21233.0,21232.0,2.29058444]
[1673996145709,0.01774037,21233.0,21232.0,2.58598444]
[1673996145948,0.0153,21238.0,21233.0,0.2]
[1673996146187,0.0153,21238.0,21237.0,0.38644]
[1673996146426,0.0153,21238.0,21237.0,2.41918698]
[1673996146653,0.0153,21238.0,21237.0,2.317675]
[1673996147832,0.0153,21238.0,21237.0,2.604775]
[1673996148353,0.0153,21238.0,21237.0,2.613275]
[1673996148558,0.0153,21238.0,21237.0,3.17210592]
[1673996149281,0.0153,21238.0,21237.0,3.5691759]
[1673996149991,0.02561514,21238.0,21237.0,3.5691759]
[1673996150220,0.02561514,21238.0,21237.0,3.21034498]
[1673996150659,0.02561514,21238.0,21237.0,3.5691759]
[1673996152282,0.02561514,21238.0,21237.0,3.21034498]
[1673996152593,0.0034792,21242.0,21237.0,3.13064728]
[1673996152814,0.0034792,21242.0,21241.0,0.151]
[1673996153046,0.0034792,21242.0,21241.0,2.94101498]
[1673996153285,0.0034792,21243.0,21241.0,3.58145598]
[1673996153518,0.0034792,21243.0,21242.0,0.564241]
[1673996153754,0.0034792,21243.0,21242.0,2.460709]
[1673996153988,0.0034792,21243.0,21242.0,2.50773805]
[1673996154227,0.0034792,21243.0,21242.0,2.94370427]
[1673996154475,0.0034792,21243.0,21242.0,2.88470834]
[1673996154936,0.0034792,21245.0,21242.0,2.79463805]
[1673996155192,0.00422875,21247.0,21244.0,0.67271]
[1673996155541,0.00422875,21247.0,21246.0,0.0755]
[1673996155799,0.00422875,21247.0,21246.0,1.089041]
[1673996156048,0.00467034,21253.0,21247.0,0.2]
[1673996156311,0.00467034,21253.0,21252.0,0.1503]
[1673996156582,0.00467034,21253.0,21252.0,0.79046699]
[1673996156844,0.00467034,21253.0,21252.0,0.77054301]
[1673996157103,0.00467034,21253.0,21252.0,0.47054301]
[1673996157922,0.01358044,21253.0,21252.0,0.47054301]
[1673996158457,0.01358044,21253.0,21252.0,0.77054301]
[1673996158984,0.01358044,21253.0,21252.0,0.98894901]
[1673996159289,0.01358044,21253.0,21252.0,0.77054301]
[1673996159839,0.01358044,21253.0,21252.0,0.84604301]
[1673996160091,0.01358044,21253.0,21252.0,0.54604301]
[1673996160598,0.01358044,21253.0,21252.0,0.76444901]
[1673996160858,0.01358044,21253.0,21252.0,1.23499201]
[1673996161109,0.01358044,21253.0,21252.0,1.53499201]
[1673996161611,0.01358044,21253.0,21252.0,1.39089101]
[1673996161612,0.00858044,21253.0,21252.0,1.39089101]
[1673996162381,0.00858044,21253.0,21252.0,2.0717535]
[1673996163391,0.00858044,21253.0,21252.0,2.3671535]
[1673996163646,0.00858044,21253.0,21252.0,2.7205157]
[1673996164130,0.00858044,21253.0,21252.0,2.3671535]
[1673996165679,0.00858044,21253.0,21252.0,2.0816535]
[1673996168954,0.00487432,21254.0,21252.0,2.3683535]
[1673996169181,0.00487432,21254.0,21253.0,0.4589]
[1673996169443,0.00487432,21254.0,21253.0,1.618336]
[1673996170033,0.01711006,21254.0,21253.0,1.618336]
[1673996172635,0.01711006,21254.0,21253.0,1.818336]
[1673996172839,0.01711006,21254.0,21253.0,1.618336]
[1673996173565,0.20783601,21254.0,21253.0,1.243436]
[1673996173824,0.01711006,21254.0,21253.0,1.159436]
[1673996174077,0.01711006,21254.0,21253.0,0.941042]
[1673996175399,0.08411006,21254.0,21253.0,0.941042]
[1673996175648,0.41012606,21254.0,21251.0,0.47055]
[1673996175909,0.321213,21253.0,21250.0,0.470572]
[1673996176160,0.321213,21253.0,21249.0,0.470589]
[1673996176161,0.51193895,21252.0,21249.0,0.470589]
[1673996176421,0.321213,21251.0,21248.0,0.620613]
[1673996176713,0.321213,21250.0,21248.0,0.15]
[1673996176974,0.321213,21249.0,21246.0,0.82266506]
[1673996177227,0.19072595,21249.0,21246.0,0.82266506]
[1673996177781,0.2,21250.0,21246.0,0.82266506]
[1673996178024,0.86131395,21250.0,21246.0,0.470673]
[1673996178313,0.321213,21249.0,21246.0,0.470673]
[1673996178654,0.86131395,21250.0,21246.0,0.470673]
[1673996178817,0.321213,21249.0,21246.0,0.470673]
[1673996179089,0.321213,21249.0,21245.0,0.47068]
[1673996179090,0.00489062,21249.0,21245.0,0.47068]
[1673996179363,0.19561657,21249.0,21245.0,0.47068]
[1673996180144,0.19561657,21249.0,21245.0,1.04288998]
[1673996180145,0.00489062,21249.0,21245.0,1.04288998]
[1673996180665,0.00489062,21249.0,21246.0,0.3]
[1673996180920,0.00489062,21249.0,21246.0,0.770669]
[1673996181215,0.00489062,21249.0,21246.0,0.470669]
[1673996181709,0.00489062,21249.0,21246.0,1.43345939]
[1673996185065,0.00478215,21249.0,21246.0,1.43345939]
[1673996186065,0.00478215,21249.0,21247.0,0.3]
[1673996186375,0.00478215,21249.0,21247.0,0.770651]
[1673996188367,0.4864,21250.0,21247.0,1.241305]
[1673996192543,0.04844178,21251.0,21248.0,0.46693747]
[1673996192799,0.04844178,21251.0,21249.0,0.47061]
[1673996192800,0.23916773,21251.0,21249.0,0.47061]
[1673996193068,0.24844178,21251.0,21249.0,0.47061]
[1673996193368,0.24844178,21251.0,21247.0,0.770652]
[1673996193369,0.47060999,21248.0,21247.0,0.470638]
[1673996193611,0.79182299,21248.0,21247.0,0.470638]
[1673996194222,0.47060999,21248.0,21247.0,0.470638]
[1673996194639,0.47060999,21248.0,21247.0,0.941292]
[1673996196196,0.47060999,21248.0,21247.0,1.241292]
[1673996198532,0.47060999,21248.0,21247.0,0.941292]
[1673996201262,0.42767499,21248.0,21247.0,0.941292]
[1673996202520,0.42767499,21248.0,21247.0,1.241292]
[1673996203399,0.42767499,21248.0,21247.0,0.941292]
[1673996205478,0.42767499,21248.0,21247.0,1.241292]
[1673996206682,0.42767499,21248.0,21247.0,0.941292]
[1673996206944,0.42767499,21248.0,21247.0,1.241292]
[1673996210753,0.42767499,21248.0,21247.0,0.941292]
[1673996211273,1.42667499,21248.0,21247.0,0.941292]
[1673996213090,1.42667499,21248.0,21247.0,0.470654]
[1673996214923,1.42667499,21248.0,21247.0,0.17840705]
[1673996215438,1.42667499,21248.0,21247.0,0.22819394]
[1673996217541,1.74788799,21248.0,21247.0,0.22819394]
[1673996218031,1.42667499,21248.0,21247.0,0.22819394]
[1673996219503,1.42667499,21248.0,21247.0,0.99884794]
[1673996220563,1.42667499,21248.0,21247.0,0.22819394]
[1673996221088,1.42667499,21248.0,21247.0,0.52819394]
[1673996221318,1.42667499,21248.0,21247.0,0.22819394]
[1673996224206,1.42667499,21248.0,21247.0,0.04978689]
[1673996226653,1.42667499,21248.0,21246.0,1.287941]
[1673996230052,1.42667499,21248.0,21246.0,0.987941]
[1673996230276,1.42667499,21248.0,21246.0,0.517278]
[1673996230515,0.321213,21247.0,21246.0,0.517278]
[1673996231103,1.62667499,21248.0,21246.0,0.517278]
[1673996231996,1.62667499,21248.0,21246.0,0.51721408]
[1673996232863,0.2,21247.0,21246.0,0.04662]
[1673996233377,0.19973,21247.0,21246.0,0.04662]
[1673996234661,1.73826382,21248.0,21246.0,0.04662]
[1673996234921,1.53826382,21248.0,21246.0,0.04662]
[1673996235429,0.321213,21247.0,21246.0,0.04662]
[1673996236220,0.2,21247.0,21246.0,0.04662]
[1673996236500,0.521213,21247.0,21246.0,0.04662]
[1673996237289,0.321213,21247.0,21246.0,0.04662]
[1673996237550,1.42667499,21248.0,21246.0,0.04662]
[1673996237806,0.2,21247.0,21245.0,0.470678]
[1673996240487,0.2,21247.0,21245.0,0.10000037]
[1673996240667,0.67538951,21247.0,21245.0,0.10000037]
[1673996240944,0.50770183,21246.0,21245.0,0.10000037]
[1673996241203,1.17837783,21246.0,21245.0,0.10000037]
[1673996241461,1.64905383,21246.0,21245.0,0.10000037]
[1673996242767,0.2,21245.0,21243.0,0.01401596]
[1673996243029,0.321213,21244.0,21243.0,0.01401596]
[1673996243589,0.76859346,21244.0,21243.0,0.01401596]
[1673996243819,2.05762252,21244.0,21243.0,0.01401596]
[1673996244077,2.22500577,21244.0,21243.0,0.01401596]
[1673996244620,2.11313959,21244.0,21243.0,0.01401596]
[1673996244894,2.31313959,21244.0,21243.0,0.01401596]
[1673996245437,2.86109555,21244.0,21238.0,0.01479095]
[1673996245901,0.0748,21240.0,21238.0,0.01479095]
[1673996246147,0.792044,21239.0,21238.0,0.01479095]
[1673996246410,0.792044,21239.0,21234.0,0.27911466]
[1673996246676,0.51193895,21238.0,21234.0,0.27911466]
[1673996246942,0.19072595,21237.0,21234.0,0.27911466]
[1673996247751,0.2,21238.0,21234.0,0.27911466]
[1673996248028,0.39072595,21238.0,21234.0,0.27911466]
[1673996248510,0.39072595,21238.0,21234.0,0.015867]
[1673996248511,1.21393619,21238.0,21234.0,0.015867]
[1673996248795,0.321213,21237.0,21234.0,0.015867]
[1673996249053,1.21393619,21238.0,21234.0,0.015867]
[1673996249054,0.321213,21236.0,21234.0,0.015867]
[1673996249323,0.321213,21235.0,21234.0,0.015867]
[1673996250716,0.2,21236.0,21234.0,0.015867]
[1673996250999,1.0282304,21237.0,21234.0,0.015867]
[1673996251000,0.67574775,21237.0,21234.0,0.015867]
[1673996251256,0.321213,21236.0,21234.0,0.015867]
[1673996251508,0.32600569,21235.0,21234.0,0.015867]
[1673996254572,0.37858992,21235.0,21234.0,0.015867]
[1673996254828,0.32600569,21235.0,21234.0,0.015867]
[1673996255860,0.31600569,21235.0,21234.0,0.015867]
[1673996256375,0.470895,21237.0,21234.0,0.015867]
[1673996256653,0.470895,21237.0,21234.0,0.11737898]
[1673996256906,0.470895,21237.0,21234.0,0.015867]
[1673996257992,0.470895,21237.0,21233.0,0.20831098]
[1673996258241,0.66162095,21237.0,21233.0,0.20831098]
[1673996258499,0.470895,21237.0,21233.0,0.20831098]
[1673996260485,0.470895,21237.0,21233.0,0.20805098]
[1673996260705,0.470895,21237.0,21234.0,0.3]
[1673996260960,0.470895,21237.0,21233.0,0.20805098]
[1673996261223,0.66162095,21237.0,21233.0,0.20805098]
[1673996261484,0.470895,21237.0,21233.0,0.20805098]
[1673996262243,0.66162095,21237.0,21233.0,0.20805098]
[1673996262506,0.470895,21237.0,21233.0,0.20805098]
[1673996263085,0.2,21236.0,21233.0,0.20805098]
[1673996263605,0.41652192,21236.0,21233.0,0.20805098]
[1673996263919,0.941785,21237.0,21233.0,0.20805098]
[1673996264185,0.941785,21237.0,21233.0,0.30956296]
[1673996264696,0.941785,21237.0,21233.0,0.20805098]
[1673996266079,0.941785,21237.0,21233.0,0.67901598]
[1673996266859,0.47089,21237.0,21233.0,0.78052796]
[1673996267128,0.47089,21237.0,21234.0,0.3]
[1673996267378,0.47089,21237.0,21234.0,0.770936]
[1673996268165,0.47089,21237.0,21233.0,0.941897]
[1673996268166,0.70473187,21237.0,21233.0,0.941897]
[1673996268430,0.2,21236.0,21233.0,0.941897]
[1673996270240,1.09545782,21237.0,21233.0,0.941897]
[1673996270495,0.581273,21238.0,21234.0,0.3]
[1673996270759,1.052138,21238.0,21235.0,0.223834]
[1673996271031,1.052138,21238.0,21234.0,0.57244398]
[1673996271278,1.052138,21238.0,21234.0,0.470932]
[1673996271279,0.521238,21237.0,21234.0,0.470932]
[1673996271670,0.321238,21236.0,21233.0,0.470945]
[1673996271822,0.2,21235.0,21233.0,0.470945]
[1673996273087,0.321238,21234.0,21233.0,0.470945]
[1673996273646,0.2,21235.0,21233.0,0.470945]
[1673996274150,0.321238,21234.0,21233.0,0.470945]
[1673996274416,0.2,21235.0,21233.0,0.470945]
[1673996274893,0.321238,21234.0,21233.0,0.470945]
[1673996275400,0.2,21235.0,21233.0,0.470945]
[1673996276425,0.321238,21234.0,21232.0,0.470971]
[1673996276681,0.2,21235.0,21232.0,0.941944]
[1673996277196,0.4123683,21235.0,21232.0,0.941944]
[1673996277453,0.2,21235.0,21232.0,0.470971]
[1673996277709,0.2,21235.0,21231.0,0.470989]
[1673996278058,0.86164595,21235.0,21231.0,0.470989]
[1673996278263,0.321238,21234.0,21231.0,0.470989]
[1673996278542,0.321238,21234.0,21229.0,0.471051]
[1673996278543,0.321238,21233.0,21229.0,0.471051]
[1673996278818,0.51196395,21232.0,21229.0,0.471051]
[1673996279043,0.2,21231.0,21228.0,0.48903733]
[1673996279364,0.39072595,21231.0,21228.0,0.48903733]
[1673996279783,0.2,21231.0,21228.0,0.48903733]
[1673996280782,0.2,21231.0,21229.0,0.0085]
[1673996281047,0.2,21232.0,21229.0,0.0085]
[1673996281860,0.222,21230.0,21228.0,0.01797933]
[1673996282114,0.432238,21229.0,21228.0,0.01797933]
[1673996282376,0.78567866,21229.0,21228.0,0.01797933]
[1673996282659,0.632238,21229.0,21228.0,0.01797933]
[1673996282924,1.38356667,21229.0,21228.0,0.01797933]
[1673996283210,0.2,21228.0,21225.0,0.015867]
[1673996283480,0.1107,21226.0,21225.0,0.015867]
[1673996283737,1.20458395,21226.0,21225.0,0.015867]
[1673996283998,1.213858,21226.0,21225.0,0.015867]
[1673996285069,1.5670142,21226.0,21225.0,0.015867]
[1673996285351,1.213858,21226.0,21225.0,0.015867]
[1673996285631,1.56729866,21226.0,21225.0,0.015867]
[1673996286149,1.79809155,21226.0,21225.0,0.015867]
[1673996286407,1.79809155,21226.0,21224.0,0.01722764]
[1673996286408,0.2,21225.0,21224.0,0.01722764]
[1673996286689,2.04422235,21225.0,21224.0,0.01722764]
[1673996287449,2.04422235,21225.0,21224.0,2.764e-05]
[1673996287451,2.04422235,21225.0,21223.0,0.02187384]
[1673996287452,0.2,21224.0,21223.0,0.02187384]
[1673996287721,0.321238,21224.0,21223.0,0.02187384]
[1673996288260,0.72147,21227.0,21223.0,0.13287384]
[1673996288261,0.508,21227.0,21223.0,0.13287384]
[1673996288512,0.508,21227.0,21224.0,0.10151198]
[1673996288784,0.508,21227.0,21225.0,0.21251198]
[1673996289048,0.04826012,21228.0,21225.0,0.21251198]
[1673996289334,0.04826012,21228.0,21227.0,0.11]
[1673996290110,0.3971,21233.0,21227.0,0.4185]
[1673996290386,0.53766183,21232.0,21228.0,0.43643998]
[1673996290649,0.53766183,21232.0,21228.0,0.21251198]
[1673996291418,0.04886183,21232.0,21230.0,0.1099]
[1673996291958,0.8859,21235.0,21230.0,0.1099]
[1673996292205,0.8859,21235.0,21231.0,0.10151198]
[1673996292206,0.93577627,21235.0,21231.0,0.10151198]
[1673996292489,0.93577627,21235.0,21232.0,0.11]
[1673996292742,0.53867627,21235.0,21232.0,0.21151198]
[1673996293001,0.53867627,21235.0,21234.0,0.2209]
[1673996293002,0.04987627,21235.0,21234.0,0.2209]
[1673996293289,0.04987627,21235.0,21234.0,0.223856]
[1673996293522,1.19360791,21240.0,21234.0,0.223856]
[1673996293786,0.24813162,21239.0,21237.0,0.0930829]
[1673996294037,0.24813162,21239.0,21237.0,0.10151198]
[1673996294296,0.321238,21238.0,21235.0,0.1108]
[1673996294562,0.321238,21237.0,21235.0,0.1108]
[1673996294805,1.26677289,21240.0,21235.0,0.1108]
[1673996295131,1.14826183,21240.0,21235.0,0.21231198]
[1673996295336,0.321238,21239.0,21235.0,0.21231198]
[1673996295612,1.33898778,21240.0,21235.0,0.21231198]
[1673996295613,1.14826183,21240.0,21235.0,0.21231198]
[1673996295882,0.321238,21239.0,21235.0,0.21231198]
[1673996296119,0.321238,21238.0,21235.0,0.1108]
[1673996296377,0.39072595,21239.0,21235.0,0.1108]
[1673996296638,1.41234195,21240.0,21235.0,0.1108]
[1673996296901,0.2,21239.0,21235.0,0.21231198]
[1673996297176,0.321238,21238.0,21235.0,0.1108]
[1673996297425,1.88315395,21240.0,21235.0,0.1108]
[1673996297744,1.88315395,21240.0,21235.0,0.21231198]
[1673996297745,2.0738799,21240.0,21235.0,0.21231198]
[1673996297947,0.321238,21239.0,21235.0,0.21231198]
[1673996298211,0.321238,21238.0,21235.0,0.1108]
[1673996298476,0.321238,21237.0,21235.0,0.1108]
[1673996298730,0.57475369,21239.0,21235.0,0.1108]
[1673996299265,0.321238,21238.0,21235.0,0.21231198]
[1673996299525,1.04558569,21239.0,21235.0,0.1108]
[1673996299800,0.84558569,21239.0,21235.0,0.21231198]
[1673996300065,0.84558569,21239.0,21235.0,0.1108]
[1673996300583,0.5657451,21240.0,21236.0,0.111]
[1673996300839,0.0492451,21240.0,21237.0,0.10151198]
[1673996301122,0.0492451,21240.0,21239.0,0.1108]
[1673996301363,0.0492451,21240.0,21239.0,0.334581]
[1673996301629,0.00516783,21241.0,21239.0,0.334581]
[1673996301895,0.00516783,21241.0,21240.0,0.111]
[1673996303025,0.00516783,21241.0,21240.0,0.21251198]
[1673996303197,0.00516783,21241.0,21240.0,1.687385]
[1673996303467,0.00516783,21241.0,21240.0,1.806585]
[1673996304529,0.00516783,21241.0,21240.0,1.695585]
[1673996304786,0.00516783,21241.0,21240.0,1.79709698]
[1673996305055,0.00516783,21241.0,21240.0,2.672185]
[1673996306336,0.00516783,21241.0,21240.0,2.472185]
[1673996306596,0.00516783,21241.0,21240.0,2.672185]
[1673996307650,0.00516783,21241.0,21240.0,3.12045857]
[1673996308413,0.00516783,21241.0,21240.0,3.12096766]
[1673996308960,0.00516783,21241.0,21240.0,3.78826766]
[1673996309186,0.00638366,21244.0,21240.0,4.27814603]
[1673996309445,0.00638366,21244.0,21243.0,0.56724]
[1673996309705,0.00638366,21244.0,21243.0,2.03396698]
[1673996309967,0.00638366,21244.0,21243.0,3.182441]
[1673996310242,0.00638366,21244.0,21243.0,2.982441]
[1673996311771,0.00638366,21244.0,21243.0,3.41921974]
[1673996316280,0.00638366,21244.0,21243.0,3.18387974]
[1673996316585,0.00638366,21244.0,21243.0,3.07347072]
[1673996319209,0.00638366,21244.0,21243.0,2.77347072]
[1673996319475,0.00638366,21244.0,21243.0,1.857958]
[1673996319725,0.00638366,21244.0,21243.0,1.387215]
[1673996320809,0.00638366,21244.0,21243.0,1.471986]
[1673996321618,0.00638366,21244.0,21243.0,1.584711]
[1673996321880,0.00638366,21244.0,21243.0,1.284711]
[1673996322160,0.00638366,21244.0,21243.0,1.584711]
[1673996322943,0.00638366,21244.0,21243.0,0.0085]
[1673996322944,0.07338366,21244.0,21243.0,0.0085]
[1673996323212,0.11388263,21242.0,21241.0,0.580867]
[1673996324161,0.11388263,21242.0,21241.0,1.051654]
[1673996324402,0.11388263,21242.0,21241.0,1.351654]
[1673996325180,0.11388263,21242.0,21241.0,1.360154]
[1673996326206,0.11388263,21242.0,21241.0,1.060154]
[1673996326996,0.11388263,21242.0,21241.0,1.360154]
[1673996327799,0.2,21241.0,21234.0,0.01771945]
[1673996328061,1.35323194,21240.0,21234.0,0.01771945]
[1673996328317,2.28853225,21239.0,21234.0,0.01771945]